[Event "*** SCC Grand Prix: Titled Tuesday Blitz"]
[Site "Chess.com"]
[Date "2020.08.25"]
[Round "6"]
[White "Kopytkin"]
[Black "Bubachess1608"]
[Result "0-1"]
[WhiteElo "2416"]
[BlackElo "2266"]
[TimeControl "180+1"]
[EndTime "11:07:28 PDT"]
[Termination "Bubachess1608 won by resignation"]

1. e4 {[%clk 0:03:00.3]} 1... c5 {[%clk 0:02:59.2]} 2. d4 {[%clk 0:03:00.2]}
2... cxd4 {[%clk 0:02:58.7]} 3. c3 {[%clk 0:03:01.1]} 3... Nf6 {[%clk
0:02:58.3]} 4. e5 {[%clk 0:03:00.9]} 4... Nd5 {[%clk 0:02:58.2]} 5. Nf3 {[%clk
0:03:01.7]} 5... Nc6 {[%clk 0:02:53.9]} 6. Bc4 {[%clk 0:03:00.7]} 6... Nb6
{[%clk 0:02:53.2]} 7. Bb3 {[%clk 0:03:01]} 7... d5 {[%clk 0:02:52.4]} 8. cxd4
{[%clk 0:03:01]} 8... Bg4 {[%clk 0:02:51.4]} 9. Be3 {[%clk 0:03:01.6]} 9... e6
{[%clk 0:02:50.7]} 10. Nbd2 {[%clk 0:03:01.8]} 10... Be7 {[%clk 0:02:50.1]} 11.
h3 {[%clk 0:03:01.4]} 11... Bh5 {[%clk 0:02:49.3]} 12. a3 {[%clk 0:02:51]} 12...
O-O {[%clk 0:02:48.2]} 13. g4 {[%clk 0:02:51.2]} 13... Bg6 {[%clk 0:02:47.3]}
14. h4 {[%clk 0:02:51.8]} 14... h5 {[%clk 0:02:45.7]} 15. g5 {[%clk 0:02:50.4]}
15... Rc8 {[%clk 0:02:43.9]} 16. Rg1 {[%clk 0:02:49.3]} 16... Na5 {[%clk
0:02:41.6]} 17. Ba2 {[%clk 0:02:49.5]} 17... Nac4 {[%clk 0:02:40.2]} 18. Nxc4
{[%clk 0:02:49.7]} 18... Nxc4 {[%clk 0:02:39.6]} 19. Qe2 {[%clk 0:02:50.2]}
19... Nxe3 {[%clk 0:02:38.2]} 20. Qxe3 {[%clk 0:02:43.7]} 20... Qb6 {[%clk
0:02:36]} 21. Qb3 {[%clk 0:02:42]} 21... Qa5+ {[%clk 0:02:30.3]} 22. Kf1 {[%clk
0:02:41.9]} 22... b5 {[%clk 0:02:29.4]} 23. Kg2 {[%clk 0:02:41.7]} 23... Be4
{[%clk 0:02:23.2]} 24. Rac1 {[%clk 0:02:40.9]} 24... g6 {[%clk 0:02:21.7]} 25.
Kg3 {[%clk 0:02:40.5]} 25... Bxf3 {[%clk 0:02:10.2]} 26. Kxf3 {[%clk 0:02:39.1]}
26... b4 {[%clk 0:02:10.4]} 27. a4 {[%clk 0:02:38.3]} 27... Rc4 {[%clk
0:02:01.1]} 28. Qd3 {[%clk 0:02:26.5]} 28... Rxc1 {[%clk 0:01:57.9]} 29. Rxc1
{[%clk 0:02:27.4]} 29... Qxa4 {[%clk 0:01:56.7]} 30. Bb3 {[%clk 0:02:27.9]}
30... Qd7 {[%clk 0:01:52.6]} 31. Qc2 {[%clk 0:02:28]} 31... Bd8 {[%clk
0:01:46.1]} 32. Ba4 {[%clk 0:02:28]} 32... Qb7 {[%clk 0:01:39.1]} 33. Qc6 {[%clk
0:02:27.4]} 33... Qb8 {[%clk 0:01:37.6]} 34. b3 {[%clk 0:02:22.8]} 34... Bb6
{[%clk 0:01:36.3]} 35. Ke3 {[%clk 0:02:23]} 35... a5 {[%clk 0:01:31.8]} 36. Kd3
{[%clk 0:02:22.5]} 36... Qa7 {[%clk 0:01:30.9]} 37. f4 {[%clk 0:02:21.9]} 37...
Bxd4 {[%clk 0:01:29.8]} 38. Qc7 {[%clk 0:02:05.4]} 38... Qxc7 {[%clk 0:01:29.1]}
39. Rxc7 {[%clk 0:02:05.5]} 39... Bf2 {[%clk 0:01:29.3]} 40. Ke2 {[%clk
0:01:57]} 40... Bxh4 {[%clk 0:01:28.7]} 41. Rc1 {[%clk 0:01:57.5]} 41... d4
{[%clk 0:01:24.3]} 42. Kf3 {[%clk 0:01:51.7]} 42... d3 {[%clk 0:01:23.1]} 43.
Rd1 {[%clk 0:01:49.4]} 43... Rd8 {[%clk 0:01:22]} 44. Ke3 {[%clk 0:01:49.2]}
44... d2 {[%clk 0:01:21.2]} 45. Rxd2 {[%clk 0:01:49.4]} 45... Rxd2 {[%clk
0:01:18.5]} 46. Kxd2 {[%clk 0:01:50.3]} 46... Bg3 {[%clk 0:01:12.8]} 47. Ke3
{[%clk 0:01:50.5]} 47... h4 {[%clk 0:01:12.5]} 48. Kf3 {[%clk 0:01:50.5]} 48...
Be1 {[%clk 0:01:12]} 49. Kg4 {[%clk 0:01:47]} 49... Bd2 {[%clk 0:01:11]} 50. Bb5
{[%clk 0:01:46.1]} 50... h3 {[%clk 0:01:10.5]} 51. Bf1 {[%clk 0:01:43.2]} 51...
h2 {[%clk 0:01:09.6]} 52. Bg2 {[%clk 0:01:43.6]} 52... Kf8 {[%clk 0:01:09.3]}
53. Be4 {[%clk 0:01:41.7]} 53... Ke7 {[%clk 0:01:08.2]} 54. Bh1 {[%clk
0:01:33.2]} 54... Kd7 {[%clk 0:01:07.8]} 55. Bg2 {[%clk 0:01:33.2]} 55... Kc7
{[%clk 0:01:06.9]} 56. Bh1 {[%clk 0:01:33.4]} 56... Kb6 {[%clk 0:01:06]} 57. Kf3
{[%clk 0:01:32.7]} 57... Kc5 {[%clk 0:01:05.4]} 58. Kg4 {[%clk 0:01:31.5]} 58...
Kd4 {[%clk 0:01:05]} 59. Bc6 {[%clk 0:01:31.5]} 59... a4 {[%clk 0:01:00]} 60.
bxa4 {[%clk 0:01:25.4]} 60... b3 {[%clk 0:00:59.4]} 0-1

[Event "*** SCC Grand Prix: Titled Tuesday Blitz"]
[Site "Chess.com"]
[Date "2020.08.25"]
[Round "6"]
[White "WPWPWP-2015"]
[Black "Kira170"]
[Result "1-0"]
[WhiteElo "2482"]
[BlackElo "2632"]
[TimeControl "180+1"]
[EndTime "11:07:32 PDT"]
[Termination "WPWPWP-2015 won by checkmate"]

1. e4 {[%clk 0:03:00.3]} 1... e6 {[%clk 0:02:59.9]} 2. d4 {[%clk 0:02:59.6]}
2... d5 {[%clk 0:03:00.2]} 3. Nc3 {[%clk 0:02:59.9]} 3... Nf6 {[%clk 0:03:00]}
4. Bg5 {[%clk 0:02:58.6]} 4... Be7 {[%clk 0:02:59.4]} 5. exd5 {[%clk 0:02:52.1]}
5... exd5 {[%clk 0:02:59.5]} 6. Bd3 {[%clk 0:02:50.6]} 6... O-O {[%clk
0:02:58.3]} 7. Nge2 {[%clk 0:02:50.3]} 7... c5 {[%clk 0:02:58.4]} 8. dxc5 {[%clk
0:02:45.6]} 8... Bxc5 {[%clk 0:02:59.3]} 9. O-O {[%clk 0:02:44]} 9... Nc6 {[%clk
0:02:58.3]} 10. Nxd5 {[%clk 0:02:37.7]} 10... Qxd5 {[%clk 0:02:34.9]} 11. Bxf6
{[%clk 0:02:37.4]} 11... Qh5 {[%clk 0:02:22]} 12. Bc3 {[%clk 0:02:34.1]} 12...
Bg4 {[%clk 0:02:20.7]} 13. Qd2 {[%clk 0:02:31.9]} 13... Rad8 {[%clk 0:02:14]}
14. Ng3 {[%clk 0:02:27.4]} 14... Qh4 {[%clk 0:02:02.1]} 15. Qf4 {[%clk 0:02:20]}
15... Bd6 {[%clk 0:02:01.7]} 16. Nf5 {[%clk 0:02:04.8]} 16... Bxf4 {[%clk
0:01:52]} 17. Nxh4 {[%clk 0:02:04.7]} 17... Ne5 {[%clk 0:01:52.4]} 18. Be4
{[%clk 0:01:42.7]} 18... f5 {[%clk 0:01:48.4]} 19. Bxb7 {[%clk 0:01:35.5]} 19...
g5 {[%clk 0:01:46.2]} 20. Rfe1 {[%clk 0:01:10.4]} 20... gxh4 {[%clk 0:01:24.4]}
21. Bxe5 {[%clk 0:01:08.7]} 21... Bd2 {[%clk 0:01:24.6]} 22. Reb1 {[%clk
0:00:48]} 22... h6 {[%clk 0:00:56.1]} 23. c4 {[%clk 0:00:41.1]} 23... Be2 {[%clk
0:00:51.2]} 24. Bd5+ {[%clk 0:00:40.3]} 24... Kh7 {[%clk 0:00:51.1]} 25. Bc3
{[%clk 0:00:38.2]} 25... Bg5 {[%clk 0:00:39.2]} 26. Re1 {[%clk 0:00:36.7]} 26...
Bd3 {[%clk 0:00:30.2]} 27. f4 {[%clk 0:00:33.5]} 27... Bxf4 {[%clk 0:00:24.9]}
28. Re7+ {[%clk 0:00:32.5]} 28... Kg6 {[%clk 0:00:24.9]} 29. Rg7+ {[%clk
0:00:31.4]} 29... Kh5 {[%clk 0:00:25.3]} 30. Bf3# {[%clk 0:00:31.1]} 1-0

[Event "*** SCC Grand Prix: Titled Tuesday Blitz"]
[Site "Chess.com"]
[Date "2020.08.25"]
[Round "6"]
[White "FMJoseHerrera"]
[Black "ElGasanov"]
[Result "0-1"]
[WhiteElo "2505"]
[BlackElo "2745"]
[TimeControl "180+1"]
[EndTime "11:07:33 PDT"]
[Termination "ElGasanov won on time"]

1. Nf3 {[%clk 0:03:00.9]} 1... d5 {[%clk 0:02:54]} 2. g3 {[%clk 0:02:59.5]} 2...
c6 {[%clk 0:02:43.4]} 3. Bg2 {[%clk 0:02:59.2]} 3... Bf5 {[%clk 0:02:44.1]} 4.
d3 {[%clk 0:02:57.8]} 4... e6 {[%clk 0:02:43.8]} 5. c3 {[%clk 0:02:57.5]} 5...
h6 {[%clk 0:02:37.4]} 6. O-O {[%clk 0:02:50.7]} 6... Nf6 {[%clk 0:02:37.9]} 7.
Qb3 {[%clk 0:02:45.5]} 7... Qb6 {[%clk 0:02:32.4]} 8. Be3 {[%clk 0:02:44.5]}
8... Qa6 {[%clk 0:02:33]} 9. a4 {[%clk 0:02:43.5]} 9... Nbd7 {[%clk 0:02:32]}
10. Qa2 {[%clk 0:02:42.3]} 10... Be7 {[%clk 0:02:26]} 11. b4 {[%clk 0:02:41.8]}
11... O-O {[%clk 0:02:25.8]} 12. Nbd2 {[%clk 0:02:39.8]} 12... Ng4 {[%clk
0:02:17.2]} 13. Rfb1 {[%clk 0:02:28]} 13... Nxe3 {[%clk 0:02:15.8]} 14. fxe3
{[%clk 0:02:28.9]} 14... Qb6 {[%clk 0:02:11.7]} 15. Nd4 {[%clk 0:02:27.4]} 15...
a6 {[%clk 0:02:01]} 16. N2f3 {[%clk 0:02:14.7]} 16... Bh7 {[%clk 0:01:56.2]} 17.
Qd2 {[%clk 0:01:51.4]} 17... e5 {[%clk 0:01:54]} 18. Nb3 {[%clk 0:01:48.1]}
18... Bd6 {[%clk 0:01:41.2]} 19. c4 {[%clk 0:01:36.1]} 19... Bxb4 {[%clk
0:01:36.2]} 20. Qc1 {[%clk 0:01:18.9]} 20... dxc4 {[%clk 0:01:36.7]} 21. Nbd2
{[%clk 0:01:18.6]} 21... Qxe3+ {[%clk 0:01:36]} 22. Kh1 {[%clk 0:01:12.4]} 22...
a5 {[%clk 0:01:24.3]} 23. Nxc4 {[%clk 0:01:11.2]} 23... Qxe2 {[%clk 0:01:24.9]}
24. Rb2 {[%clk 0:00:49.1]} 24... Qxd3 {[%clk 0:01:22.4]} 25. Ncxe5 {[%clk
0:00:49.6]} 25... Nxe5 {[%clk 0:01:21.7]} 26. Nxe5 {[%clk 0:00:50.5]} 26... Qc3
{[%clk 0:01:20]} 27. Nc4 {[%clk 0:00:39.1]} 27... Rfe8 {[%clk 0:01:14.1]} 28.
Nb6 {[%clk 0:00:31.3]} 28... Rad8 {[%clk 0:01:08]} 29. Rf2 {[%clk 0:00:30.8]}
29... Qd4 {[%clk 0:00:50.2]} 0-1

[Event "*** SCC Grand Prix: Titled Tuesday Blitz"]
[Site "Chess.com"]
[Date "2020.08.25"]
[Round "6"]
[White "Tooweak2slow03"]
[Black "Noam_Vitenberg"]
[Result "1-0"]
[WhiteElo "2701"]
[BlackElo "2514"]
[TimeControl "180+1"]
[EndTime "11:07:34 PDT"]
[Termination "Tooweak2slow03 won by checkmate"]

1. e4 {[%clk 0:03:00.9]} 1... e5 {[%clk 0:02:58.7]} 2. Nf3 {[%clk 0:03:00]} 2...
Nc6 {[%clk 0:02:58.6]} 3. Nc3 {[%clk 0:03:00]} 3... Nf6 {[%clk 0:02:57.5]} 4. a3
{[%clk 0:02:59.8]} 4... d5 {[%clk 0:02:56.8]} 5. Bb5 {[%clk 0:02:59.5]} 5...
Nxe4 {[%clk 0:02:50.2]} 6. Qe2 {[%clk 0:02:59]} 6... Nxc3 {[%clk 0:02:41.5]} 7.
Qxe5+ {[%clk 0:02:58.7]} 7... Qe7 {[%clk 0:02:38.5]} 8. dxc3 {[%clk 0:02:56.5]}
8... f6 {[%clk 0:02:36.4]} 9. Qxe7+ {[%clk 0:02:56.3]} 9... Bxe7 {[%clk
0:02:37.3]} 10. Bf4 {[%clk 0:02:54.4]} 10... Bf5 {[%clk 0:02:29.9]} 11. Nd4
{[%clk 0:02:45.8]} 11... Bd7 {[%clk 0:02:29.1]} 12. O-O-O {[%clk 0:02:34.9]}
12... O-O-O {[%clk 0:02:28]} 13. Nxc6 {[%clk 0:02:34.7]} 13... Bxc6 {[%clk
0:02:26.8]} 14. Bxc6 {[%clk 0:02:35]} 14... bxc6 {[%clk 0:02:27.7]} 15. Rhe1
{[%clk 0:02:33.1]} 15... Rhe8 {[%clk 0:02:27.5]} 16. Rd2 {[%clk 0:02:22.1]}
16... Bc5 {[%clk 0:02:25]} 17. Rde2 {[%clk 0:02:20.7]} 17... Kd7 {[%clk
0:02:22.9]} 18. Rxe8 {[%clk 0:01:52.9]} 18... Rxe8 {[%clk 0:02:23.8]} 19. Rxe8
{[%clk 0:01:53.3]} 19... Kxe8 {[%clk 0:02:22.8]} 20. Be3 {[%clk 0:01:48.7]}
20... Bxe3+ {[%clk 0:02:21.8]} 21. fxe3 {[%clk 0:01:49.6]} 21... Ke7 {[%clk
0:02:22.2]} 22. Kd2 {[%clk 0:01:45.3]} 22... Ke6 {[%clk 0:02:22.5]} 23. Kd3
{[%clk 0:01:45.6]} 23... Ke5 {[%clk 0:02:23]} 24. b4 {[%clk 0:01:41.7]} 24... f5
{[%clk 0:02:07.8]} 25. g3 {[%clk 0:01:39.3]} 25... g5 {[%clk 0:02:07.8]} 26. a4
{[%clk 0:01:35.1]} 26... a6 {[%clk 0:02:06.2]} 27. h4 {[%clk 0:01:32.7]} 27...
h6 {[%clk 0:02:02.7]} 28. a5 {[%clk 0:01:26.9]} 28... g4 {[%clk 0:01:29]} 29. h5
{[%clk 0:01:24.3]} 29... Ke6 {[%clk 0:01:24.4]} 30. c4 {[%clk 0:01:17.1]} 30...
Kd6 {[%clk 0:01:23.9]} 31. Kd4 {[%clk 0:01:16.7]} 31... Ke6 {[%clk 0:00:36.5]}
32. b5 {[%clk 0:01:13.6]} 32... cxb5 {[%clk 0:00:33.3]} 33. cxb5 {[%clk
0:01:13.7]} 33... Kd7 {[%clk 0:00:31.9]} 34. Kxd5 {[%clk 0:01:09.5]} 34... axb5
{[%clk 0:00:31.3]} 35. Kc5 {[%clk 0:01:07.1]} 35... c6 {[%clk 0:00:31.1]} 36. a6
{[%clk 0:01:05.6]} 36... Kc7 {[%clk 0:00:30.3]} 37. a7 {[%clk 0:01:05.5]} 37...
Kb7 {[%clk 0:00:30.6]} 38. a8=Q+ {[%clk 0:01:06.4]} 38... Kxa8 {[%clk 0:00:31]}
39. Kxc6 {[%clk 0:01:06.9]} 39... b4 {[%clk 0:00:31.1]} 40. Kb5 {[%clk
0:01:05.7]} 40... b3 {[%clk 0:00:31]} 41. cxb3 {[%clk 0:01:05.6]} 41... Kb7
{[%clk 0:00:31.9]} 42. Kc5 {[%clk 0:01:06.1]} 42... Kc7 {[%clk 0:00:32]} 43. Kd5
{[%clk 0:01:06.7]} 43... Kb6 {[%clk 0:00:30.7]} 44. Ke5 {[%clk 0:01:07.2]} 44...
Kc5 {[%clk 0:00:31.6]} 45. Kxf5 {[%clk 0:01:07.8]} 45... Kd5 {[%clk 0:00:31.7]}
46. Kxg4 {[%clk 0:01:08]} 46... Ke4 {[%clk 0:00:32.6]} 47. b4 {[%clk 0:01:07.7]}
47... Kxe3 {[%clk 0:00:33]} 48. b5 {[%clk 0:01:08.2]} 48... Ke4 {[%clk
0:00:32.5]} 49. b6 {[%clk 0:01:09.1]} 49... Ke5 {[%clk 0:00:33.4]} 50. b7 {[%clk
0:01:10]} 50... Ke6 {[%clk 0:00:34.1]} 51. b8=Q {[%clk 0:01:10.9]} 51... Kf6
{[%clk 0:00:34.6]} 52. Qd6+ {[%clk 0:01:10.7]} 52... Kg7 {[%clk 0:00:35.1]} 53.
Kf5 {[%clk 0:01:11.2]} 53... Kh7 {[%clk 0:00:35.8]} 54. Qe7+ {[%clk 0:01:11.7]}
54... Kg8 {[%clk 0:00:35.9]} 55. Kg6 {[%clk 0:01:12.6]} 55... Kh8 {[%clk
0:00:36.7]} 56. Qe8# {[%clk 0:01:13.2]} 1-0

[Event "*** SCC Grand Prix: Titled Tuesday Blitz"]
[Site "Chess.com"]
[Date "2020.08.25"]
[Round "6"]
[White "Shuvalov"]
[Black "cukin84"]
[Result "1-0"]
[WhiteElo "2403"]
[BlackElo "2057"]
[TimeControl "180+1"]
[EndTime "11:07:37 PDT"]
[Termination "Shuvalov won by resignation"]

1. Nf3 {[%clk 0:02:08]} 1... f5 {[%clk 0:02:58.9]} 2. d4 {[%clk 0:02:07.3]} 2...
Nf6 {[%clk 0:02:58.7]} 3. g3 {[%clk 0:02:06.7]} 3... g6 {[%clk 0:02:58.9]} 4.
Bg2 {[%clk 0:02:07.3]} 4... Bg7 {[%clk 0:02:59.1]} 5. O-O {[%clk 0:02:07.9]}
5... d6 {[%clk 0:02:58.8]} 6. c3 {[%clk 0:02:08.2]} 6... O-O {[%clk 0:02:58.7]}
7. Qb3+ {[%clk 0:02:08.2]} 7... Kh8 {[%clk 0:02:57.8]} 8. Ng5 {[%clk 0:02:08.4]}
8... d5 {[%clk 0:02:50.2]} 9. f3 {[%clk 0:02:06.8]} 9... c6 {[%clk 0:02:49.2]}
10. Nd2 {[%clk 0:02:03.7]} 10... h6 {[%clk 0:02:48.1]} 11. Nh3 {[%clk
0:02:03.1]} 11... Kh7 {[%clk 0:02:45.9]} 12. Nf2 {[%clk 0:02:02.3]} 12... Na6
{[%clk 0:02:42.5]} 13. e4 {[%clk 0:02:01.3]} 13... Nc7 {[%clk 0:02:32.5]} 14. e5
{[%clk 0:02:00.5]} 14... Nfe8 {[%clk 0:02:30.1]} 15. f4 {[%clk 0:01:56.8]} 15...
e6 {[%clk 0:02:27.6]} 16. Nf3 {[%clk 0:01:55.9]} 16... a5 {[%clk 0:02:19.4]} 17.
a4 {[%clk 0:01:54.8]} 17... Na6 {[%clk 0:02:18.9]} 18. Be3 {[%clk 0:01:53.9]}
18... Qe7 {[%clk 0:02:18.4]} 19. Nd3 {[%clk 0:01:53.1]} 19... Rb8 {[%clk
0:02:08.9]} 20. Qb6 {[%clk 0:01:49.5]} 20... Qc7 {[%clk 0:02:05.6]} 21. Qxc7
{[%clk 0:01:47.5]} 21... Naxc7 {[%clk 0:02:04.9]} 22. b4 {[%clk 0:01:48.4]}
22... axb4 {[%clk 0:02:03.2]} 23. cxb4 {[%clk 0:01:49.3]} 23... Ra8 {[%clk
0:02:02.1]} 24. Rfc1 {[%clk 0:01:48.1]} 24... Bd7 {[%clk 0:02:01.9]} 25. Nc5
{[%clk 0:01:47.3]} 25... Bc8 {[%clk 0:01:56.6]} 26. Bf1 {[%clk 0:01:47.5]} 26...
Rf7 {[%clk 0:01:47.8]} 27. a5 {[%clk 0:01:46.4]} 27... Bf8 {[%clk 0:01:45.9]}
28. Na4 {[%clk 0:01:44.1]} 28... Bxb4 {[%clk 0:01:44]} 29. Nb6 {[%clk
0:01:41.9]} 29... Rb8 {[%clk 0:01:43.2]} 30. Bd2 {[%clk 0:01:37.5]} 30... Be7
{[%clk 0:01:41.6]} 31. h4 {[%clk 0:01:36.1]} 31... Rg7 {[%clk 0:01:41]} 32. Kf2
{[%clk 0:01:35.4]} 32... g5 {[%clk 0:01:37.3]} 33. fxg5 {[%clk 0:01:33.8]} 33...
h5 {[%clk 0:01:34.4]} 34. Ng1 {[%clk 0:01:29.4]} 34... Kg6 {[%clk 0:01:31.2]}
35. Ne2 {[%clk 0:01:29]} 35... Nb5 {[%clk 0:01:26.4]} 36. Nf4+ {[%clk
0:01:27.6]} 36... Kh7 {[%clk 0:01:24.5]} 37. Bxb5 {[%clk 0:01:26.7]} 37... cxb5
{[%clk 0:01:23.9]} 38. Rxc8 {[%clk 0:01:26.3]} 38... Rxc8 {[%clk 0:01:19.5]} 39.
Nxc8 {[%clk 0:01:27.2]} 39... Nc7 {[%clk 0:01:12.8]} 40. Rc1 {[%clk 0:01:21.9]}
40... Ba3 {[%clk 0:01:09.7]} 41. Rc2 {[%clk 0:01:17.2]} 41... b4 {[%clk
0:01:09.2]} 42. Ra2 {[%clk 0:01:13.2]} 42... Nb5 {[%clk 0:01:05.5]} 43. Ke3
{[%clk 0:01:11.2]} 43... Rc7 {[%clk 0:01:02.4]} 44. Nd6 {[%clk 0:01:09.8]} 44...
Nxd6 {[%clk 0:00:53.2]} 45. exd6 {[%clk 0:01:10.7]} 45... Rc6 {[%clk 0:00:53.1]}
46. d7 {[%clk 0:01:08.3]} 46... Rd6 {[%clk 0:00:52.8]} 47. Nd3 {[%clk
0:00:53.1]} 47... Rxd7 {[%clk 0:00:50.1]} 48. Bxb4 {[%clk 0:00:53.3]} 48... Bxb4
{[%clk 0:00:49.4]} 49. Nxb4 {[%clk 0:00:54.2]} 49... Kg6 {[%clk 0:00:45.3]} 50.
Nd3 {[%clk 0:00:53.4]} 1-0

[Event "*** SCC Grand Prix: Titled Tuesday Blitz"]
[Site "Chess.com"]
[Date "2020.08.25"]
[Round "6"]
[White "ChronicUnhappiness"]
[Black "Rhinos1"]
[Result "0-1"]
[WhiteElo "2360"]
[BlackElo "2237"]
[TimeControl "180+1"]
[EndTime "11:07:41 PDT"]
[Termination "Rhinos1 won by checkmate"]

1. d4 {[%clk 0:03:00.9]} 1... e6 {[%clk 0:02:57.1]} 2. c4 {[%clk 0:03:01.1]}
2... c5 {[%clk 0:02:57.1]} 3. d5 {[%clk 0:03:00.5]} 3... exd5 {[%clk 0:02:56.7]}
4. cxd5 {[%clk 0:03:00.9]} 4... d6 {[%clk 0:02:57.4]} 5. Nc3 {[%clk 0:03:01.2]}
5... Be7 {[%clk 0:02:58.1]} 6. Nf3 {[%clk 0:03:01.7]} 6... Nf6 {[%clk
0:02:58.7]} 7. e4 {[%clk 0:02:59]} 7... O-O {[%clk 0:02:58.9]} 8. Be2 {[%clk
0:02:58.4]} 8... Nbd7 {[%clk 0:02:58]} 9. O-O {[%clk 0:02:57.8]} 9... Re8 {[%clk
0:02:58.5]} 10. Qc2 {[%clk 0:02:54.4]} 10... Nf8 {[%clk 0:02:57.6]} 11. h3
{[%clk 0:02:49.1]} 11... a6 {[%clk 0:02:57.5]} 12. a4 {[%clk 0:02:48]} 12... Ng6
{[%clk 0:02:57]} 13. Re1 {[%clk 0:02:45.8]} 13... Nh5 {[%clk 0:02:47.5]} 14. e5
{[%clk 0:02:35.3]} 14... dxe5 {[%clk 0:02:39.6]} 15. Nxe5 {[%clk 0:02:20.1]}
15... Nhf4 {[%clk 0:02:38.9]} 16. Bc4 {[%clk 0:02:07.9]} 16... Bd6 {[%clk
0:02:26]} 17. Nf3 {[%clk 0:01:19.5]} 17... Rxe1+ {[%clk 0:01:47.3]} 18. Nxe1
{[%clk 0:01:20.4]} 18... Bxh3 {[%clk 0:01:26.3]} 19. Bxf4 {[%clk 0:00:56.9]}
19... Nxf4 {[%clk 0:01:23.6]} 20. gxh3 {[%clk 0:00:54]} 20... Nxh3+ {[%clk
0:01:13.7]} 21. Kf1 {[%clk 0:00:49.8]} 21... Qh4 {[%clk 0:01:11.7]} 22. Ne4
{[%clk 0:00:40.2]} 22... Nf4 {[%clk 0:00:57.9]} 23. f3 {[%clk 0:00:15]} 23...
Qh1+ {[%clk 0:00:55.5]} 24. Kf2 {[%clk 0:00:15.1]} 24... Be5 {[%clk 0:00:56.1]}
25. Nd3 {[%clk 0:00:02.9]} 25... Bd4+ {[%clk 0:00:45.9]} 26. Kg3 {[%clk
0:00:02.7]} 26... Qh3+ {[%clk 0:00:37]} 27. Kxf4 {[%clk 0:00:02.6]} 27... Qh4+
{[%clk 0:00:37.3]} 28. Kf5 {[%clk 0:00:01.6]} 28... g6# {[%clk 0:00:37.7]} 0-1

[Event "*** SCC Grand Prix: Titled Tuesday Blitz"]
[Site "Chess.com"]
[Date "2020.08.25"]
[Round "6"]
[White "Gabrielian_Artur"]
[Black "SergeyKarjakin"]
[Result "0-1"]
[WhiteElo "2716"]
[BlackElo "2975"]
[TimeControl "180+1"]
[EndTime "11:07:42 PDT"]
[Termination "SergeyKarjakin won on time"]

1. e4 {[%clk 0:03:00.9]} 1... e5 {[%clk 0:02:59.4]} 2. Nc3 {[%clk 0:02:59.4]}
2... Nf6 {[%clk 0:02:56.4]} 3. g3 {[%clk 0:02:59.3]} 3... d5 {[%clk 0:02:50.4]}
4. exd5 {[%clk 0:02:59.6]} 4... Nxd5 {[%clk 0:02:51.3]} 5. Bg2 {[%clk
0:03:00.1]} 5... Nxc3 {[%clk 0:02:51.8]} 6. bxc3 {[%clk 0:03:01]} 6... Bd6
{[%clk 0:02:52.1]} 7. Nf3 {[%clk 0:03:00.6]} 7... O-O {[%clk 0:02:52.6]} 8. O-O
{[%clk 0:03:00.7]} 8... Nc6 {[%clk 0:02:53.1]} 9. Rb1 {[%clk 0:02:57.6]} 9...
Re8 {[%clk 0:02:39.8]} 10. d3 {[%clk 0:02:57.2]} 10... h6 {[%clk 0:02:38.8]} 11.
Re1 {[%clk 0:02:54.8]} 11... Rb8 {[%clk 0:02:34.8]} 12. Nd2 {[%clk 0:02:51]}
12... Be6 {[%clk 0:02:30.3]} 13. a4 {[%clk 0:02:49.5]} 13... Qd7 {[%clk
0:02:26.8]} 14. Nb3 {[%clk 0:02:35.5]} 14... b6 {[%clk 0:02:22.5]} 15. d4 {[%clk
0:02:27.5]} 15... exd4 {[%clk 0:02:01.5]} 16. cxd4 {[%clk 0:02:24.2]} 16... Nb4
{[%clk 0:02:01.8]} 17. c3 {[%clk 0:02:06.5]} 17... Bf5 {[%clk 0:01:48.2]} 18.
Rxe8+ {[%clk 0:01:49.2]} 18... Rxe8 {[%clk 0:01:49.1]} 19. Rb2 {[%clk
0:01:48.7]} 19... Nd3 {[%clk 0:01:47.8]} 20. Re2 {[%clk 0:01:37]} 20... Rxe2
{[%clk 0:01:47.9]} 21. Qxe2 {[%clk 0:01:37]} 21... Qxa4 {[%clk 0:01:46.1]} 22.
Bd5 {[%clk 0:01:17.5]} 22... Bg6 {[%clk 0:01:28.1]} 23. Bd2 {[%clk 0:01:06.7]}
23... Qb5 {[%clk 0:01:26.2]} 24. Be4 {[%clk 0:00:37.9]} 24... Bxe4 {[%clk
0:01:17.4]} 25. Qxe4 {[%clk 0:00:37.9]} 25... Qxb3 {[%clk 0:01:08.6]} 26. Qxd3
{[%clk 0:00:36.5]} 26... a5 {[%clk 0:01:03.8]} 27. Qe4 {[%clk 0:00:27.7]} 27...
a4 {[%clk 0:01:03.6]} 28. Qe8+ {[%clk 0:00:18.6]} 28... Kh7 {[%clk 0:01:03.3]}
29. Qe4+ {[%clk 0:00:18]} 29... g6 {[%clk 0:01:03.3]} 30. Qe3 {[%clk 0:00:12.4]}
30... Bf8 {[%clk 0:00:57.2]} 31. Qe8 {[%clk 0:00:11.8]} 31... Bg7 {[%clk
0:00:55.8]} 32. Kg2 {[%clk 0:00:01.4]} 32... a3 {[%clk 0:00:55.1]} 33. Qa8
{[%clk 0:00:01.2]} 33... a2 {[%clk 0:00:54.8]} 0-1